[Event "Swiss Youth-ch U14 2023"]
[Site "Olten"]
[Date "2023.05.26"]
[Round "1.8"]
[White "Gade, Niels Severin"]
[Black "Akinkhov, Mikhail"]
[Result "0-1"]
[ECO "C42"]
[WhiteElo "1689"]
[BlackElo "1495"]
[Annotator "NA RC"]
[PlyCount "84"]
[EventDate "2023.05.26"]
[EventType "swiss"]
[EventCountry "SUI"]
[SourceTitle "playchess.com"]
[Source "ChessBase"]
[SourceQuality "1"]
[TimeControl "5400+30"]

1. e4 {[%emt 0:00:04]} e5 {[%emt 0:00:02]} 2. Nf3 {[%emt 0:00:13]} Nf6 {[%emt 0:00:02]} 3. Nxe5 {[%emt 0:00:11]} d6 {[%emt 0:00:05]} 4. Nf3 {[%emt 0:00:09]} Nxe4 {[%emt 0:00:05]} 5. c4 {[%emt 0:00:49]} c6 {[%emt 0:01:59]} 6. Nc3 {[%emt 0:01:00]} Nxc3 {[%emt 0:00:34]} 7. dxc3 {[%emt 0:00:16]} Be7 {[%emt 0:00:58]} 8. Be2 {[%emt 0:00:16]} O-O {[%emt 0:00:49]} 9. O-O {[%emt 0:00:11]} Nd7 {[%emt 0:03:21]} 10. Bf4 {[%emt 0:04:18]} Nf6 {[%emt 0:01:51]} 11. Qc2 {[%emt 0:06:50]} Qa5 {[%emt 0:08:59]} 12. Nd4 {[%emt 0:02:56]} d5 {[%emt 0:11:59]} 13. Nf5 {[%emt 0:01:41]} Bxf5 {[%emt 0:06:27]} 14. Qxf5 {[%emt 0:00:50]} Qd8 {[%emt 0:01:46]} 15. cxd5 {[%emt 0:03:27]} Qxd5 {[%emt 0:03:33]} 16. Qxd5 {[%emt 0:02:48]} Nxd5 {[%emt 0:00:50]} 17. Bg3 {[%emt 0:00:37]} Rad8 {[%emt 0:02:04]} 18. Rad1 {[%emt 0:00:29]} Nb6 {[%emt 0:12:45]} 19. Bf3 {[%emt 0:02:52]} Na4 {[%emt 0:02:51]} 20. Rb1 {[%emt 0:02:35]} Bf6 {[%emt 0:15:07]} 21. Bd1 {[%emt 0:01:16]} Nc5 {[%emt 0:03:10]} 22. Bc2 {[%emt 0:05:26]} Rd2 {[%emt 0:01:31]} 23. Bf5 {[%emt 0:03:34]} Na4 {[%emt 0:03:38]} 24. h3 {[%emt 0:11:32]} Rxb2 {[%emt 0:01:23]} 25. Rxb2 {[%emt 0:00:33]} Nxb2 {[%emt 0:00:04]} 26. Rc1 {[%emt 0:00:51]} g6 {[%emt 0:04:02]} 27. Bg4 {[%emt 0:01:33]} Re8 {[%emt 0:02:22]} 28. Kh2 {[%emt 0:03:19]} h5 {[%emt 0:01:03]} 29. Bf3 {[%emt 0:01:37]} h4 {[%emt 0:01:02]} 30. Bd6 {[%emt 0:01:44]} Rd8 {[%emt 0:03:17]} 31. Bc5 {[%emt 0:04:29]} Nd3 {[%emt 0:01:09]} 32. Be3 {[%emt 0:02:16]} Nxc1 {[%emt 0:00:18]} 33. Bxc1 {[%emt 0:00:09]} Bxc3 {[%emt 0:00:17]} 34. Bg5 {[%emt 0:00:19]} Be5+ {[%emt 0:00:28]} 35. Kg1 {[%emt 0:00:20]} f6 {[%emt 0:01:05]} 36. Bxh4 {[%emt 0:00:04]} g5 {[%emt 0:00:26]} 37. Bg3 {[%emt 0:00:09]} Bxg3 {[%emt 0:00:12]} 38. fxg3 {[%emt 0:00:06]} Rd2 {[%emt 0:00:35]} 39. Bg4 {[%emt 0:00:15]} Kg7 {[%emt 0:00:26]} 40. Be6 {[%emt 0:00:10]} c5 {[%emt 0:00:53]} 41. h4 {[%emt 0:01:45]} gxh4 {[%emt 0:00:41]} 42. gxh4 {[%emt 0:00:06]} b5 {[%emt 0:00:17]} 0-1

[Event "Swiss Youth-ch U14 2023"]
[Site "Olten"]
[Date "2023.05.26"]
[Round "2.1"]
[White "Malli, Suvirr"]
[Black "Breyer, Philippe"]
[Result "1-0"]
[ECO "B90"]
[WhiteElo "2114"]
[BlackElo "1766"]
[Annotator "NA RC"]
[PlyCount "53"]
[EventDate "2023.05.26"]
[EventType "swiss"]
[EventCountry "SUI"]
[SourceTitle "playchess.com"]
[Source "ChessBase"]
[SourceQuality "1"]
[TimeControl "5400+30"]

1. e4 {[%emt 0:00:03]} c5 {[%emt 0:00:03]} 2. Nf3 {[%emt 0:00:17]} d6 {[%emt 0:00:02]} 3. d4 {[%emt 0:00:11]} cxd4 {[%emt 0:00:02]} 4. Nxd4 {[%emt 0:00:26]} Nf6 {[%emt 0:00:07]} 5. Nc3 {[%emt 0:00:11]} a6 {[%emt 0:00:13]} 6. h3 {[%emt 0:00:08]} e5 {[%emt 0:01:58]} 7. Nf3 {[%emt 0:00:25]} Be7 {[%emt 0:00:55]} 8. g4 {[%emt 0:00:38]} h6 {[%emt 0:00:11]} 9. Rg1 {[%emt 0:03:58]} g5 {[%emt 0:11:16]} 10. Be3 {[%emt 0:05:08]} Qc7 {[%emt 0:04:34]} 11. a4 {[%emt 0:05:41]} b6 {[%emt 0:06:29]} 12. Bg2 {[%emt 0:03:10]} Bb7 {[%emt 0:06:51]} 13. Nd2 {[%emt 0:01:36]} Nbd7 {[%emt 0:01:57]} 14. Nf1 {[%emt 0:03:46]} Nf8 {[%emt 0:04:48]} 15. Ng3 {[%emt 0:03:01]} Ng6 {[%emt 0:02:37]} 16. Nf5 {[%emt 0:03:53]} Nf4 {[%emt 0:01:36]} 17. Bxf4 {[%emt 0:02:19]} exf4 {[%emt 0:03:24]} 18. Qd4 {[%emt 0:01:21]} Bc8 {[%emt 0:10:42]} 19. Nd5 {[%emt 0:11:14]} Nxd5 {[%emt 0:01:13]} 20. Qxh8+ {[%emt 0:00:15]} Bf8 {[%emt 0:00:40]} 21. exd5 {[%emt 0:00:51]} Bxf5 {[%emt 0:00:41]} 22. gxf5 {[%emt 0:00:07]} Qxc2 {[%emt 0:02:20]} 23. Qc3 {[%emt 0:00:27]} Qxf5 {[%emt 0:00:05]} 24. Qc6+ {[%emt 0:00:21]} Ke7 {[%emt 0:00:03]} 25. Qxa8 {[%emt 0:01:28]} f3 {[%emt 0:00:40]} 26. Bxf3 {[%emt 0:02:28]} Qxf3 {[%emt 0:00:20]} 27. Ra3 {[%emt 0:50:37]} 1-0

[Event "Swiss Youth-ch U14 2023"]
[Site "Olten"]
[Date "2023.05.26"]
[Round "2.2"]
[White "Breyer, Thierry"]
[Black "Gut, Lionel"]
[Result "0-1"]
[ECO "B90"]
[WhiteElo "1697"]
[BlackElo "2054"]
[Annotator "NA RC"]
[PlyCount "30"]
[EventDate "2023.05.26"]
[EventType "swiss"]
[EventCountry "SUI"]
[SourceTitle "playchess.com"]
[Source "ChessBase"]
[SourceQuality "1"]
[TimeControl "5400+30"]

1. e4 {[%emt 0:00:03]} c5 {[%emt 0:00:08]} 2. Nf3 {[%emt 0:00:03]} d6 {[%emt 0:00:16]} 3. d4 {[%emt 0:00:04]} cxd4 {[%emt 0:00:11]} 4. Nxd4 {[%emt 0:00:03]} Nf6 {[%emt 0:00:22]} 5. Nc3 {[%emt 0:00:09]} a6 {[%emt 0:00:11]} 6. h3 {[%emt 0:00:08]} e5 {[%emt 0:00:03]} 7. Nb3 {[%emt 0:00:04]} Be6 {[%emt 0:00:13]} 8. f4 {[%emt 0:00:52]} b5 {[%emt 0:01:10]} 9. f5 {[%emt 0:01:45]} Bc8 {[%emt 0:00:08]} 10. a3 {[%emt 0:04:43]} Bb7 {[%emt 0:00:57]} 11. Bd3 {[%emt 0:00:47]} d5 {[%emt 0:04:55]} 12. Qf3 {[%emt 0:07:55]} dxe4 {[%emt 0:00:41]} 13. Nxe4 {[%emt 0:01:25]} Nxe4 {[%emt 0:00:10]} 14. O-O {[%emt 0:02:08]} Nc5 {[%emt 0:01:08]} 15. Qe2 {[%emt 0:01:26]} Nc6 {[%emt 0:07:41]} 0-1

[Event "Swiss Youth-ch U14 2023"]
[Site "Olten"]
[Date "2023.05.26"]
[Round "2.3"]
[White "Akinkhov, Mikhail"]
[Black "Kanana, Ziad"]
[Result "0-1"]
[ECO "E97"]
[WhiteElo "1495"]
[BlackElo "1828"]
[Annotator "NA RC"]
[PlyCount "46"]
[EventDate "2023.05.26"]
[EventType "swiss"]
[EventCountry "SUI"]
[SourceTitle "playchess.com"]
[Source "ChessBase"]
[SourceQuality "1"]
[TimeControl "5400+30"]

1. d4 {[%emt 0:00:05]} Nf6 {[%emt 0:00:05]} 2. c4 {[%emt 0:00:04]} g6 {[%emt 0:00:06]} 3. Nc3 {[%emt 0:00:04]} Bg7 {[%emt 0:00:03]} 4. e4 {[%emt 0:00:11]} d6 {[%emt 0:00:03]} 5. Nf3 {[%emt 0:00:20]} O-O {[%emt 0:00:07]} 6. Be2 {[%emt 0:00:12]} e5 {[%emt 0:00:03]} 7. O-O {[%emt 0:00:32]} Nc6 {[%emt 0:00:04]} 8. d5 {[%emt 0:00:38]} Ne7 {[%emt 0:00:10]} 9. b4 {[%emt 0:00:52]} Ne8 {[%emt 0:00:06]} 10. Nd2 {[%emt 0:02:16]} f5 {[%emt 0:00:10]} 11. f3 {[%emt 0:00:35]} f4 {[%emt 0:00:16]} 12. c5 {[%emt 0:01:02]} g5 {[%emt 0:00:26]} 13. cxd6 {[%emt 0:01:11]} cxd6 {[%emt 0:01:41]} 14. Nc4 {[%emt 0:03:31]} h5 {[%emt 0:02:47]} 15. Bd2 {[%emt 0:05:29]} Rf7 {[%emt 0:01:17]} 16. Nb5 {[%emt 0:06:49]} Bf8 {[%emt 0:01:49]} 17. Be1 {[%emt 0:04:58]} a6 {[%emt 0:12:51]} 18. Nc3 {[%emt 0:01:12]} Rg7 {[%emt 0:09:04]} 19. Kh1 {[%emt 0:04:59]} g4 {[%emt 0:08:17]} 20. Bh4 {[%emt 0:15:32]} g3 {[%emt 0:04:49]} 21. hxg3 {[%emt 0:04:20]} Rxg3 {[%emt 0:11:42]} 22. Bxg3 {[%emt 0:30:33]} fxg3 {[%emt 0:00:30]} 23. Qe1 {[%emt 0:00:09]} Nf5 {[%emt 0:00:51]} 0-1

[Event "Swiss Youth-ch U14 2023"]
[Site "Olten"]
[Date "2023.05.26"]
[Round "2.4"]
[White "Gut, Raphael"]
[Black "Delangle, Alexander"]
[Result "1-0"]
[ECO "D43"]
[WhiteElo "1817"]
[BlackElo "1621"]
[Annotator "NA RC"]
[PlyCount "71"]
[EventDate "2023.05.26"]
[EventType "swiss"]
[EventCountry "SUI"]
[SourceTitle "playchess.com"]
[Source "ChessBase"]
[SourceQuality "1"]
[TimeControl "5400+30"]

1. d4 {[%emt 0:00:01]} d5 {[%emt 0:00:09]} 2. c4 {[%emt 0:00:08]} c6 {[%emt 0:00:32]} 3. Nc3 {[%emt 0:00:04]} Nf6 {[%emt 0:00:06]} 4. Nf3 {[%emt 0:00:08]} e6 {[%emt 0:00:25]} 5. Bg5 {[%emt 0:00:38]} h6 {[%emt 0:00:13]} 6. Bh4 {[%emt 0:00:15]} dxc4 {[%emt 0:00:36]} 7. e4 {[%emt 0:00:40]} g5 {[%emt 0:00:05]} 8. Bg3 {[%emt 0:00:08]} b5 {[%emt 0:00:12]} 9. Ne5 {[%emt 0:19:41]} Bb7 {[%emt 0:08:29]} 10. Be2 {[%emt 0:02:03]} Nbd7 {[%emt 0:02:10]} 11. O-O {[%emt 0:01:28]} Bg7 {[%emt 0:03:25]} 12. Nxf7 {[%emt 0:00:13]} Kxf7 {[%emt 0:01:04]} 13. e5 {[%emt 0:00:02]} Rf8 {[%emt 0:17:26]} 14. exf6 {[%emt 0:09:46]} Nxf6 {[%emt 0:01:52]} 15. Bf3 {[%emt 0:07:27]} Qd7 {[%emt 0:02:22]} 16. Qe2 {[%emt 0:05:00]} Rae8 {[%emt 0:02:36]} 17. Rad1 {[%emt 0:01:01]} Kg8 {[%emt 0:06:57]} 18. Rfe1 {[%emt 0:01:30]} Qf7 {[%emt 0:03:44]} 19. Bd6 {[%emt 0:07:42]} g4 {[%emt 0:02:45]} 20. Be4 {[%emt 0:00:30]} Nxe4 {[%emt 0:04:10]} 21. Nxe4 {[%emt 0:00:10]} Rd8 {[%emt 0:07:50]} 22. Bxf8 {[%emt 0:00:43]} Kxf8 {[%emt 0:00:51]} 23. Qxg4 {[%emt 0:02:02]} Rxd4 {[%emt 0:02:46]} 24. Rxd4 {[%emt 0:01:30]} Bxd4 {[%emt 0:00:05]} 25. Qh4 {[%emt 0:01:20]} Qe7 {[%emt 0:08:12]} 26. Qxh6+ {[%emt 0:01:24]} Kg8 {[%emt 0:00:50]} 27. Qg6+ {[%emt 0:01:33]} Bg7 {[%emt 0:02:49]} 28. Ng5 {[%emt 0:00:35]} Qf6 {[%emt 0:03:45]} 29. Qh7+ {[%emt 0:00:49]} Kf8 {[%emt 0:00:12]} 30. Nxe6+ {[%emt 0:00:07]} Kf7 {[%emt 0:01:00]} 31. Nxg7 {[%emt 0:00:11]} Qxb2 {[%emt 0:01:17]} 32. Qf5+ {[%emt 0:00:53]} Kg8 {[%emt 0:01:35]} 33. Re8+ {[%emt 0:00:14]} Kxg7 {[%emt 0:00:07]} 34. Re7+ {[%emt 0:00:02]} Kg8 {[%emt 0:00:17]} 35. Qf7+ {[%emt 0:00:06]} Kh8 {[%emt 0:00:06]} 36. Re8# {[%emt 0:00:05]} 1-0

[Event "Swiss Youth-ch U14 2023"]
[Site "Olten"]
[Date "2023.05.26"]
[Round "2.5"]
[White "Udipi, Kala Kishan"]
[Black "Papaux, Jeremie"]
[Result "1-0"]
[ECO "D45"]
[WhiteElo "1904"]
[BlackElo "1491"]
[Annotator "TA"]
[PlyCount "111"]
[EventDate "2023.05.26"]
[EventType "swiss"]
[EventCountry "SUI"]
[SourceTitle "playchess.com"]
[Source "ChessBase"]
[SourceQuality "1"]
[TimeControl "5400+30"]

{[%evp 14,111,0,0,0,-37,-26,-33,-56,-77,-39,-84,-69,-97,-58,-54,-75,-160,-164,-139,0,0,50,45,38,-48,-45,-83,-16,-13,-28,-20,26,45,25,32,46,42,45,41,35,43,54,41,45,0,41,0,58,52,69,0,8,14,70,0,60,-10,137,125,207,39,121,23,89,35,210,180,370,369,356,355,760,153,158,158,158,158,161,162,158,155,151,14,152,152,131,136,126,113,114,112,121,102,158,147,914,889,808,801]} 1. d4 {[%emt 0:00:01]} Nf6 {[%emt 0:00:08]} 2. c4 {[%emt 0:00:02]} e6 {[%emt 0:00:09]} 3. Nc3 {[%emt 0:00:02]} d5 {[%emt 0:00:07]} 4. Nf3 {[%emt 0:00:31]} Nbd7 {[%emt 0:01:54]} 5. Qc2 {[%emt 0:01:30]} c6 {[%emt 0:01:52]} 6. e3 {[%emt 0:00:19]} Be7 {[%emt 0:03:45]} 7. g4 {[%emt 0:01:13]} dxc4 {[%emt 0:04:52]} 8. Bxc4 {[%emt 0:00:36]} b5 {[%emt 0:03:37] D45: Semi-Slav: 5 e3.} (8... Nxg4 9. Rg1 Ngf6 10. Rxg7 $14) 9. Bd3 {[%emt 0:00:30]} h6 {[%emt 0:00:57]} 10. Rg1 {[%emt 0:00:08]} Bb7 {[%emt 0:03:39] [#] Black is slightly better.} 11. Qe2 $146 {[%emt 0:08:16]} ({Predecessor:} 11. g5 hxg5 12. Nxg5 Nf8 13. f4 Nd5 14. Nxd5 exd5 15. Nf3 Bf6 16. Bd2 Rh3 17. Rf1 {1-0 Wichmann,C (2266)-Engel,G (1706) Sachsen-ch Leipzig 2018 (2)}) 11... g5 {[%emt 0:06:53]} (11... b4 $5 {[%cal Rb4c3]} 12. Na4 c5 13. dxc5 Nxc5 14. Nxc5 Bxc5 $15) 12. Bd2 {[%emt 0:00:26]} a6 $1 {[%emt 0:01:19]} 13. O-O-O {[%emt 0:09:45]} Qc7 {[%emt 0:01:24] ...c5 is the strong threat.} 14. Kb1 {[%emt 0:00:14]} c5 {[%emt 0:01:18][%cal Bc6c5,Bc5c4][%mdl 32]} 15. Rc1 {[%emt 0:09:07]} (15. dxc5 $142 Nxc5 16. Bc2) 15... c4 $17 {[%emt 0:01:53]} 16. Bc2 {[%emt 0:00:14]} Nb6 {[%emt 0:03:02]} (16... b4 $17 17. Na4 Qa5) 17. Ne5 $11 {[%emt 0:05:49]} Nfd5 {[%emt 0:03:31]} (17... Nbd7 $11) 18. Nxd5 $14 {[%emt 0:00:45]} Nxd5 {[%emt 0:01:59]} 19. e4 {[%emt 0:03:54]} (19. f4 $14) 19... Nb4 $1 $15 {[%emt 0:03:50]} 20. Bd1 {[%emt 0:14:11]} Nc6 {[%emt 0:04:04]} (20... Rd8 $17 21. Qe3 Bd6) 21. Nxc6 $11 {[%emt 0:01:52]} Bxc6 {[%emt 0:01:14]} 22. d5 {[%emt 0:04:05]} exd5 {[%emt 0:02:30]} (22... Bb7 $142) 23. exd5 {[%emt 0:00:24]} Bxd5 {[%emt 0:00:09]} 24. Re1 {[%emt 0:00:39][%cal Od2a5]} Be6 {[%emt 0:00:45]} 25. Bc3 {[%emt 0:38:27][%mdl 1024] White has compensation.} Rg8 {[%emt 0:01:24]} 26. Qe4 {[%emt 0:00:00]} O-O-O $1 {[%emt 0:02:33]} 27. Qa8+ {[%emt 0:00:00]} Qb8 {[%emt 0:00:19]} 28. Qc6+ {[%emt 0:00:00]} Qc7 {[%emt 0:00:12]} 29. Qa8+ {[%emt 0:00:00]} Qb8 {[%emt 0:00:16]} 30. Qc6+ {[%emt 0:00:00]} Qc7 {[%emt 0:00:09]} 31. Qxa6+ {[%emt 0:00:00]} Qb7 {[%emt 0:00:12]} 32. Rxe6 $40 {[%emt 0:00:00][%mdl 128] Black needs to defend precisely.} (32. Qa5 $1 $14) 32... fxe6 {[%emt 0:00:28]} 33. Qxe6+ {[%emt 0:00:00]} Qd7 {[%emt 0:02:21]} ({Black should try} 33... Kb8 $11) 34. Qxh6 {[%emt 0:00:00] White is more active.} (34. Qa6+ $14 Qb7 35. Qxh6) 34... Rgf8 {[%emt 0:03:16]} (34... Qd6 $11 35. Qh7 Qg6+ 36. Qxg6 (36. Bc2 Qxh7 37. Bxh7 Rgf8 $11) 36... Rxg6) 35. f3 {[%emt 0:00:00]} ({White should play} 35. Bc2 $14) 35... Bd6 {[%emt 0:05:59]} (35... Qd6 $11 36. Qh7 Qd3+ 37. Qxd3 Rxd3) 36. Bc2 $1 $16 {[%emt 0:00:12]} Bf4 {[%emt 0:01:18]} (36... Rxf3 $16 {was called for.} 37. Qxg5 Bc7) 37. Rh1 $2 {[%emt 0:02:15]} (37. Bb4 $1 $18 {[%cal Rb4f8]} Rf7 38. Be4) 37... Qd5 {[%emt 0:10:32]} (37... Qd6 $14 38. Bf5+ Kb7 39. Qxd6 Rxd6) 38. Rf1 {[%emt 0:01:07]} (38. a3 $16 {Strongly threatening Rd1.} Qd6 39. Qh7) 38... Rfe8 {[%emt 0:04:57] [#]} (38... Qd6 $11 39. Qxd6 Bxd6) 39. Qb6 {[%emt 0:01:38]} ({Of course not} 39. Bf5+ $6 Kb8 40. Qb6+ Qb7 $11) (39. a3 $1 $16) 39... Rf8 $2 {[%emt 0:02:05]} (39... Bxh2 $2 40. Bf5+ Rd7 41. Ba5 $18 (41. Bxd7+ Kxd7 42. Qa7+ Kc8 $16)) (39... Rd6 $14 40. Qa7 Re2 41. Bf5+ Kd8 42. Qb8+ Ke7 43. Qa7+ (43. Bb4 Be5 $11) 43... Kd8) 40. a3 {[%emt 0:01:14] Hoping for Be4.} Qb7 {[%emt 0:01:43] Inhibits Be4.} (40... Rd6 41. Qf2 Re8) 41. Qc5+ $18 {[%emt 0:00:21]} Kb8 {[%emt 0:03:35]} 42. Be4 {[%emt 0:00:36] A strong pair of Bishops.} Bd6 $2 {[%emt 0:01:52]} (42... Rc8) 43. Qxd6+ $2 {[%emt 0:00:57]} (43. Be5 $18 {and the rest is easy.} Qxe4+ 44. fxe4 Rxf1+ 45. Ka2 Bxe5 46. Qxb5+ Kc7 47. Qxc4+ Kb6 48. Qxf1) 43... Rxd6 $16 {[%emt 0:00:10]} 44. Bxb7 {[%emt 0:00:04]} Kxb7 $18 {[%emt 0:00:13][%mdl 4096] Endgame KRR-KRB} 45. Bb4 {[%emt 0:00:05]} Kc6 {[%emt 0:00:32]} 46. Bxd6 {[%emt 0:00:17]} Kxd6 {[%emt 0:00:07] KR-KR} 47. Kc2 {[%emt 0:00:34]} Kc5 {[%emt 0:00:32]} 48. Re1 {[%emt 0:01:14]} (48. Kc3 $16) 48... Kd4 {[%emt 0:01:45] [#]} (48... Rxf3 $11 {keeps the balance.} 49. Re5+ Kc6) 49. Re4+ $1 $16 {[%emt 0:00:32]} Kd5 {[%emt 0:00:10]} 50. Re3 {[%emt 0:00:18]} Kd4 {[%emt 0:00:17]} 51. Kd2 {[%emt 0:00:12]} Rh8 {[%emt 0:00:39]} 52. Re4+ {[%emt 0:00:06]} Kd5 {[%emt 0:00:07]} 53. Re2 {[%emt 0:00:12]} Rf8 {[%emt 0:00:27]} (53... Kd4 $142 54. Kc2 Rf8) 54. Ke3 {[%emt 0:00:37] Black must now prevent Kf2.} Rf4 $2 {[%emt 0:00:46][%mdl 8192] [#]} (54... Rh8 $16 55. Rd2+ Ke5) 55. h4 $1 $18 {[%emt 0:00:15][%cal Bh2h4,Bh4g5][%mdl 32]} Rd4 {[%emt 0:00:25]} (55... Rf8 56. hxg5) 56. hxg5 {[%emt 0:02:44] Never resign too early!   Weighted Error Value: White=0.46/Black=0.45} 1-0

[Event "Swiss Youth-ch U14 2023"]
[Site "Olten"]
[Date "2023.05.26"]
[Round "2.6"]
[White "Van Aepelen, Nikolai"]
[Black "Gade, Niels Severin"]
[Result "1-0"]
[ECO "D52"]
[WhiteElo "1623"]
[BlackElo "1689"]
[Annotator "NA RC"]
[PlyCount "83"]
[EventDate "2023.05.26"]
[EventType "swiss"]
[EventCountry "SUI"]
[SourceTitle "playchess.com"]
[Source "ChessBase"]
[SourceQuality "1"]
[TimeControl "5400+30"]

1. d4 {[%emt 0:00:14]} d5 {[%emt 0:00:06]} 2. c4 {[%emt 0:00:08]} c6 {[%emt 0:00:07]} 3. Nf3 {[%emt 0:00:04]} Nf6 {[%emt 0:00:10]} 4. Nc3 {[%emt 0:00:07]} e6 {[%emt 0:00:10]} 5. Bg5 {[%emt 0:00:47]} Nbd7 {[%emt 0:00:09]} 6. e3 {[%emt 0:00:20]} Qa5 {[%emt 0:00:26]} 7. Bxf6 {[%emt 0:03:01]} Nxf6 {[%emt 0:00:52]} 8. a3 {[%emt 0:00:17]} Ne4 {[%emt 0:02:04]} 9. Rc1 {[%emt 0:01:32]} Nxc3 {[%emt 0:05:55]} 10. Rxc3 {[%emt 0:00:18]} Bxa3 {[%emt 0:01:02]} 11. Nd2 {[%emt 0:02:52]} Bxb2 {[%emt 0:03:55]} 12. Rc2 {[%emt 0:08:36]} Bc3 {[%emt 0:00:38]} 13. Be2 {[%emt 0:08:55]} Bxd2+ {[%emt 0:02:57]} 14. Rxd2 {[%emt 0:00:17]} dxc4 {[%emt 0:00:48]} 15. Bxc4 {[%emt 0:00:10]} O-O {[%emt 0:00:25]} 16. O-O {[%emt 0:00:08]} Bd7 {[%emt 0:01:11]} 17. Ra2 {[%emt 0:01:11]} Qc7 {[%emt 0:00:21]} 18. Bd3 {[%emt 0:01:04]} b5 {[%emt 0:02:24]} 19. Qc2 {[%emt 0:00:33]} g6 {[%emt 0:03:01]} 20. Bxb5 {[%emt 0:00:10]} Rfb8 {[%emt 0:00:38]} 21. Bd3 {[%emt 0:00:56]} a5 {[%emt 0:02:29]} 22. Rc1 {[%emt 0:07:59]} Qb6 {[%emt 0:08:15]} 23. h4 {[%emt 0:07:24]} Ra7 {[%emt 0:08:24]} 24. h5 {[%emt 0:02:48]} Kg7 {[%emt 0:03:16]} 25. Qe2 {[%emt 0:02:18]} Qc7 {[%emt 0:06:52]} 26. Rc5 {[%emt 0:04:55]} a4 {[%emt 0:08:54]} 27. Qf3 {[%emt 0:01:05]} Rab7 {[%emt 0:01:05]} 28. g3 {[%emt 0:02:02]} Ra7 {[%emt 0:03:32]} 29. h6+ {[%emt 0:00:15]} Kf8 {[%emt 0:11:43]} 30. g4 {[%emt 0:16:50]} Qd8 {[%emt 0:05:27]} 31. g5 {[%emt 0:00:33]} Kg8 {[%emt 0:02:00]} 32. Qf4 {[%emt 0:01:11]} Qf8 {[%emt 0:04:33]} 33. Qf6 {[%emt 0:01:15]} Rb3 {[%emt 0:01:39]} 34. Bc2 {[%emt 0:00:38]} Rb4 {[%emt 0:00:31]} 35. e4 {[%emt 0:01:38]} a3 {[%emt 0:01:17]} 36. Rc3 {[%emt 0:00:37]} Rb2 {[%emt 0:04:11]} 37. Raxa3 {[%emt 0:00:40]} Rxa3 {[%emt 0:00:08]} 38. Rxa3 {[%emt 0:00:08]} Rb8 {[%emt 0:00:16]} 39. Ra7 {[%emt 0:01:31]} Be8 {[%emt 0:00:24]} 40. Bb3 {[%emt 0:00:38]} c5 {[%emt 0:04:44]} 41. dxc5 {[%emt 0:02:27]} Rc8 {[%emt 0:00:42]} 42. Bxe6 {[%emt 0:00:28]} 1-0

[Event "Swiss Youth-ch U14 2023"]
[Site "Olten"]
[Date "2023.05.26"]
[Round "2.7"]
[White "Paholok, Adam"]
[Black "Stoll, Arturo"]
[Result "1/2-1/2"]
[ECO "D00"]
[WhiteElo "1556"]
[BlackElo "1607"]
[Annotator "NA RC"]
[PlyCount "71"]
[EventDate "2023.05.26"]
[EventType "swiss"]
[EventCountry "SUI"]
[SourceTitle "playchess.com"]
[Source "ChessBase"]
[SourceQuality "1"]
[TimeControl "5400+30"]

1. d4 {[%emt 0:00:39]} Nf6 {[%emt 0:00:09]} 2. e3 {[%emt 0:00:45]} d5 {[%emt 0:02:25]} 3. Bd3 {[%emt 0:00:12]} c5 {[%emt 0:00:09]} 4. c3 {[%emt 0:00:09]} Nc6 {[%emt 0:00:09]} 5. f4 {[%emt 0:00:51]} Bg4 {[%emt 0:00:15]} 6. Nf3 {[%emt 0:01:08]} Ne4 {[%emt 0:00:19]} 7. O-O {[%emt 0:00:19]} e6 {[%emt 0:00:11]} 8. Nbd2 {[%emt 0:09:42]} f5 {[%emt 0:12:15]} 9. Qe1 {[%emt 0:03:09]} Bxf3 {[%emt 0:00:47]} 10. Nxf3 {[%emt 0:00:18]} Be7 {[%emt 0:03:52]} 11. b3 {[%emt 0:09:48]} cxd4 {[%emt 0:04:28]} 12. cxd4 {[%emt 0:03:13]} Rc8 {[%emt 0:05:06]} 13. a3 {[%emt 0:15:51]} O-O {[%emt 0:04:14]} 14. b4 {[%emt 0:05:34]} a6 {[%emt 0:03:25]} 15. Bb2 {[%emt 0:46:22]} a5 16. b5 {[%emt 0:00:00]} Nb8 {[%emt 0:10:19]} 17. Ne5 {[%emt 0:00:00]} Bd6 {[%emt 0:03:50]} 18. Rc1 {[%emt 0:00:00]} Rxc1 {[%emt 0:00:16]} 19. Qxc1 {[%emt 0:00:00]} Nd7 {[%emt 0:03:29]} 20. Qc2 {[%emt 0:00:00]} Bxe5 {[%emt 0:12:35]} 21. dxe5 {[%emt 0:00:00]} Nec5 {[%emt 0:03:50]} 22. Be2 {[%emt 0:00:00]} b6 {[%emt 0:03:16]} 23. Rc1 {[%emt 0:00:00]} a4 {[%emt 0:05:58]} 24. Bd1 {[%emt 0:00:00]} Kf7 {[%emt 0:05:31]} 25. Qe2 {[%emt 0:00:00]} g6 {[%emt 0:00:40]} 26. Bd4 {[%emt 0:00:00]} Qe7 {[%emt 0:01:55]} 27. g3 {[%emt 0:00:00]} h5 {[%emt 0:02:44]} 28. h4 {[%emt 0:00:00]} Kg7 {[%emt 0:02:12]} 29. Kg2 {[%emt 0:00:00]} Kh6 {[%emt 0:00:15]} 30. Rc3 {[%emt 0:00:00]} Qd8 {[%emt 0:00:51]} 31. Qc2 {[%emt 0:00:00]} Qa8 {[%emt 0:01:11]} 32. Qe2 {[%emt 0:00:00]} Rc8 {[%emt 0:01:38]} 33. Rc2 {[%emt 0:01:00]} Nb3 {[%emt 0:04:56]} 34. Rxc8 {[%emt 0:03:42]} Qxc8 {[%emt 0:00:01]} 35. Qc2 {[%emt 0:01:16]} Nbc5 {[%emt 0:02:03]} 36. Qc3 {[%emt 0:00:35]} 1/2-1/2